fUSD/lending_fUSD_20250101
["ID","MTS","AMOUNT","RATE_DAILY","PERIOD"]
[347334466,1735702243784,-4317.96,0.00011057,2]
[347334467,1735702243794,-500.0,0.00011057,2]
[347334468,1735702243804,-1118.36,0.00011057,2]
[347334469,1735702243816,-500.0,0.00011057,2]
[347334470,1735702243826,-500.0,0.00011057,2]
[347334471,1735702243836,-500.0,0.00011057,2]
[347334472,1735702243845,-837.92,0.00011057,2]
[347334473,1735702243855,-970.03,0.00011057,2]
[347334474,1735702243865,-920.91,0.00011057,2]
[347334475,1735702243875,-1455.25,0.00011057,2]
[347334476,1735702243885,-536.31,0.00011057,2]
[347334477,1735702243894,-1180.88,0.00011057,2]
[347334478,1735702243903,-850.35,0.00011057,2]
[347334479,1735702243913,-1286.49,0.00011057,2]
[347334480,1735702243922,-500.0,0.00011057,2]
[347334481,1735702243931,-2450.79,0.00011057,2]
[347334482,1735702243941,-1353.48,0.00011057,2]
[347334483,1735702243951,-500.0,0.00011057,2]
[347334484,1735702243960,-1175.39,0.00011057,2]
[347334485,1735702243969,-546.86,0.00011057,2]
[347334486,1735702243979,-500.0,0.00011057,2]
[347334487,1735702243988,-500.0,0.00011057,2]
[347334488,1735702243997,-500.0,0.00011057,2]
[347334489,1735702244007,-500.0,0.00011057,2]
[347334490,1735702244016,-500.0,0.00011057,2]
[347334491,1735702244026,-588.31,0.00011057,2]
[347334492,1735702244036,-500.0,0.00011057,2]
[347334493,1735702244045,-816.09,0.00011057,2]
[347334494,1735702244055,-1392.57,0.00011057,2]
[347334495,1735702244064,-500.0,0.00011057,2]
[347334496,1735702244074,-914.43,0.00011057,2]
[347334497,1735702244083,-2979.74,0.00011057,2]
[347334498,1735702244092,-551.45,0.00011057,2]
[347334499,1735702244103,-849.36,0.00011057,2]
[347334500,1735702244112,-500.0,0.00011057,2]
[347334501,1735702244122,-1045.65,0.00011057,2]
[347334502,1735702244132,-516.11724569,0.00011057,2]
[347334503,1735702244142,-500.0,0.00011057,2]
[347334504,1735702244152,-1417.46,0.00011057,2]
[347334505,1735702244162,-4738.94,0.00011057,2]
[347334506,1735702244173,-1080.45,0.00011057,2]
[347334507,1735702244183,-500.0,0.00011057,2]
[347334508,1735702244193,-500.0,0.00011057,2]
[347334509,1735702244203,-1150.44,0.00011057,2]
[347334510,1735702244214,-1379.77,0.00011057,2]
[347334511,1735702244224,-500.0,0.00011057,2]
[347334512,1735702244234,-1089.85,0.00011057,2]
[347334513,1735702244244,-500.0,0.00011057,2]
[347334514,1735702244254,-2729.93,0.00011057,2]
[347334515,1735702244264,-642.44,0.00011057,2]
[347334516,1735702244275,-615.95,0.00011057,2]
[347334517,1735702244284,-1379.23,0.00011057,2]
[347334518,1735702244293,-500.0,0.00011057,2]
[347334519,1735702244303,-1692.57,0.00011057,2]
[347334520,1735702244312,-1479.28,0.00011057,2]
[347334521,1735702244321,-757.32,0.00011057,2]
[347334522,1735702244331,-622.84,0.00011057,2]
[347334523,1735702244340,-500.0,0.00011057,2]
[347334524,1735702244350,-2841.07,0.00011057,2]
[347334525,1735702244359,-500.0,0.00011057,2]
[347334526,1735702244369,-775.62,0.00011057,2]
[347334527,1735702244380,-2629.37,0.00011057,2]
[347334528,1735702244391,-500.0,0.00011057,2]
[347334529,1735702244401,-520.35,0.00011057,2]
[347334530,1735702244411,-2455.5,0.00011057,2]
[347334531,1735702244420,-500.0,0.00011057,2]
[347334532,1735702244431,-870.76,0.00011057,2]
[347334533,1735702244440,-500.0,0.00011057,2]
[347334534,1735702244451,-500.0,0.00011057,2]
[347334535,1735702244460,-523.54,0.00011057,2]
[347334536,1735702244470,-789.76,0.00011057,2]
[347334537,1735702244482,-500.0,0.00011057,2]
[347334538,1735702244493,-1259.52,0.00011057,2]
[347334539,1735702244503,-1140.59,0.00011057,2]
[347334540,1735702244512,-2517.65,0.00011057,2]
[347334541,1735702244522,-500.0,0.00011057,2]
[347334542,1735702244531,-500.0,0.00011057,2]
[347334543,1735702244540,-500.0,0.00011057,2]
[347334544,1735702244550,-3231.41,0.00011057,2]
[347334545,1735702244559,-949.49,0.00011057,2]
[347334546,1735702244569,-500.0,0.00011057,2]
[347334547,1735702244578,-500.0,0.00011057,2]
[347334548,1735702244587,-2725.79,0.00011057,2]
[347334549,1735702244597,-653.56,0.00011057,2]
[347334550,1735702244606,-500.0,0.00011057,2]
[347334551,1735702244616,-500.0,0.00011057,2]
[347334552,1735702244625,-3084.89,0.00011057,2]
[347334553,1735702244635,-500.0,0.00011057,2]
[347334554,1735702244644,-905.92,0.00011057,2]
[347334555,1735702244653,-500.0,0.00011057,2]
[347334556,1735702244663,-1720.3,0.00011057,2]
[347334557,1735702244672,-500.0,0.00011057,2]
[347334558,1735702244681,-570.88,0.00011057,2]
[347334559,1735702244692,-1054.99,0.00011057,2]
[347334560,1735702244701,-500.0,0.00011057,2]
[347334561,1735702244710,-500.0,0.00011057,2]
[347334562,1735702244720,-500.0,0.00011057,2]
[347334563,1735702244730,-1077.09,0.00011057,2]
[347334564,1735702244739,-5057.23,0.00011057,2]
[347334565,1735702244750,-1132.43,0.00011057,2]
[347334566,1735702244759,-1328.85,0.00011057,2]
[347334567,1735702244768,-4490.49,0.00011057,2]
[347334568,1735702244778,-613.76,0.00011057,2]
[347334569,1735702244787,-874.12,0.00011057,2]
[347334570,1735702244797,-500.0,0.00011057,2]
[347334571,1735702244806,-1376.22,0.00011057,2]
[347334572,1735702244815,-2376.27,0.00011057,2]
[347334573,1735702244825,-500.0,0.00011057,2]
[347334574,1735702244834,-500.0,0.00011057,2]
[347334575,1735702244844,-2468.92,0.00011057,2]
[347334576,1735702244854,-500.0,0.00011057,2]
[347334577,1735702244863,-585.14,0.00011057,2]
[347334578,1735702244872,-3548.02,0.00011057,2]
[347334579,1735702244882,-845.32,0.00011057,2]
[347334580,1735702244891,-1425.77,0.00011057,2]
[347334581,1735702244901,-1884.34,0.00011057,2]
[347334582,1735702244910,-500.0,0.00011057,2]
[347334583,1735702244920,-500.0,0.00011057,2]
[347334584,1735702244929,-879.66,0.00011057,2]
[347334585,1735702244938,-500.0,0.00011057,2]
[347334586,1735702244948,-1516.38,0.00011057,2]
[347334587,1735702244958,-2805.43,0.00011057,2]
[347334588,1735702244967,-3812.68,0.00011057,2]
[347334589,1735702244978,-500.0,0.00011057,2]
[347334590,1735702244989,-500.0,0.00011057,2]
[347334591,1735702245001,-500.0,0.00011057,2]
[347334592,1735702245011,-500.0,0.00011057,2]
[347334593,1735702245020,-1573.59,0.00011057,2]
[347334594,1735702245030,-500.0,0.00011057,2]
[347334595,1735702245039,-500.0,0.00011057,2]
[347334596,1735702245048,-2302.54,0.00011057,2]
[347334597,1735702245057,-4075.12,0.00011057,2]
[347334598,1735702245067,-500.0,0.00011057,2]
[347334599,1735702245076,-443.73392557,0.00011057,2]
[347334600,1735702245086,-500.0,0.00011057,2]
[347334601,1735702245095,-816.36,0.00011057,2]
[347334602,1735702245104,-500.0,0.00011057,2]
[347334603,1735702245114,-500.0,0.00011057,2]
[347334604,1735702245123,-500.0,0.00011057,2]
[347334605,1735702245132,-548.97,0.00011057,2]
[347334606,1735702245141,-500.0,0.00011057,2]
[347334607,1735702245150,-3239.54,0.00011057,2]
[347334608,1735702245160,-500.0,0.00011057,2]
[347334609,1735702245169,-748.31,0.00011057,2]
[347334610,1735702245179,-500.0,0.00011057,2]
[347334611,1735702245188,-955.31,0.00011057,2]
[347334612,1735702245197,-500.0,0.00011057,2]
[347334613,1735702245207,-662.68,0.00011057,2]
[347334614,1735702245216,-2530.69,0.00011057,2]
[347334615,1735702245226,-500.0,0.00011057,2]
[347334616,1735702245235,-3975.83,0.00011057,2]
[347334617,1735702245244,-500.0,0.00011057,2]
[347334618,1735702245254,-500.0,0.00011057,2]
[347334619,1735702245263,-871.16,0.00011057,2]
[347334620,1735702245273,-747.08,0.00011057,2]
[347334621,1735702245282,-799.74,0.00011057,2]
[347334622,1735702245292,-500.0,0.00011057,2]
[347334623,1735702245301,-2346.71,0.00011057,2]
[347334624,1735702245310,-500.0,0.00011057,2]
[347334625,1735702245320,-1350.57,0.00011057,2]
[347334626,1735702245330,-2343.59,0.00011057,2]
[347334627,1735702245339,-662.44,0.00011057,2]
[347334628,1735702245348,-532.9,0.00011057,2]
[347334629,1735702245358,-520.69,0.00011057,2]
[347334630,1735702245368,-500.0,0.00011057,2]
[347334631,1735702245378,-2648.76,0.00011057,2]
[347334632,1735702245388,-500.0,0.00011057,2]
[347334633,1735702245402,-165.69145083,0.00011057,2]
[347334634,1735702245411,-500.0,0.00011057,2]
[347334635,1735702245422,-713.81,0.00011057,2]
[347334636,1735702245432,-3262.84,0.00011057,2]
[347334637,1735702245441,-550.28,0.00011057,2]
[347334638,1735702245453,-500.0,0.00011057,2]
[347334639,1735702245464,-500.0,0.00011057,2]
[347334640,1735702245475,-2355.24,0.00011057,2]
[347334641,1735702245484,-664.07,0.00011057,2]
[347334642,1735702245495,-1366.2,0.00011057,2]
[347334643,1735702245504,-1585.74,0.00011057,2]
[347334644,1735702245513,-2215.27,0.00011057,2]
[347334645,1735702245523,-1454.77,0.00011057,2]
[347334646,1735702245533,-875.03,0.00011057,2]
[347334647,1735702245542,-500.0,0.00011057,2]
[347334648,1735702245552,-2277.28,0.00011057,2]
[347334649,1735702245562,-500.0,0.00011057,2]
[347334650,1735702245572,-500.0,0.00011057,2]
[347334651,1735702245581,-2202.95,0.00011057,2]
[347334652,1735702245591,-500.0,0.00011057,2]
[347334653,1735702245601,-945.51,0.00011057,2]
[347334654,1735702245611,-875.4,0.00011057,2]
[347334655,1735702245620,-500.0,0.00011057,2]
[347334656,1735702245630,-2895.37,0.00011057,2]
[347334657,1735702245639,-500.0,0.00011057,2]
[347334658,1735702245649,-915.73,0.00011057,2]
[347334660,1735702245659,-500.0,0.00011057,2]
[347334661,1735702245670,-500.0,0.00011057,2]
[347334662,1735702245680,-4442.05,0.00011057,2]
[347334663,1735702245691,-3830.32,0.00011057,2]
[347334664,1735702245701,-851.62,0.00011057,2]
[347334665,1735702245711,-500.0,0.00011057,2]
[347334666,1735702245722,-872.85,0.00011057,2]
[347334667,1735702245731,-500.0,0.00011057,2]
[347334668,1735702245743,-2527.77,0.00011057,2]
[347334669,1735702245754,-12026.79,0.00011057,2]
[347334670,1735702245765,-500.0,0.00011057,2]
[347334671,1735702245775,-500.0,0.00011057,2]
[347334672,1735702245784,-2181.87,0.00011057,2]
[347334673,1735702245794,-1527.96,0.00011057,2]
[347334674,1735702245803,-548.53,0.00011057,2]
[347334675,1735702245812,-785.93,0.00011057,2]
[347334676,1735702245822,-500.0,0.00011057,2]
[347334677,1735702245832,-500.0,0.00011057,2]
[347334678,1735702245842,-3899.62,0.00011057,2]
[347334679,1735702245850,-1077.58,0.00011057,2]
[347334680,1735702245859,-5517.59,0.00011057,2]
[347334681,1735702245869,-2507.03,0.00011057,2]
[347334682,1735702245880,-1362.18,0.00011057,2]
[347334683,1735702245889,-1026.81,0.00011057,2]
[347334685,1735702245898,-3255.52,0.00011057,2]
[347334686,1735702245909,-500.0,0.00011057,2]
[347334687,1735702245919,-779.82,0.00011057,2]
[347334688,1735702245929,-2854.92,0.00011057,2]
[347334689,1735702245940,-500.0,0.00011057,2]
[347334690,1735702245949,-694.27,0.00011057,2]
[347334691,1735702245960,-500.0,0.00011057,2]
[347334692,1735702245969,-500.0,0.00011057,2]
[347334693,1735702245980,-849.66,0.00011057,2]
[347334694,1735702245989,-1544.25,0.00011057,2]
[347334695,1735702245998,-563.24,0.00011057,2]
[347334696,1735702246008,-500.0,0.00011057,2]
[347334697,1735702246018,-2628.38,0.00011057,2]
[347334698,1735702246028,-500.0,0.00011057,2]
[347334700,1735702246037,-500.0,0.00011057,2]
[347334701,1735702246047,-578.96,0.00011057,2]
[347334703,1735702246056,-1933.84,0.00011057,2]
[347334704,1735702246066,-522.61,0.00011057,2]
[347334705,1735702246075,-500.0,0.00011057,2]
[347334706,1735702246085,-500.0,0.00011057,2]
[347334707,1735702246095,-4091.51,0.00011057,2]
[347334708,1735702246105,-500.0,0.00011057,2]
[347334709,1735702246117,-2588.41,0.00011057,2]
[347334710,1735702246127,-500.0,0.00011057,2]
[347334711,1735702246136,-500.0,0.00011057,2]
[347334712,1735702246147,-500.0,0.00011057,2]
[347334713,1735702246158,-2711.61,0.00011057,2]
[347334714,1735702246168,-500.0,0.00011057,2]
[347334715,1735702246178,-4299.37,0.00011057,2]
[347334716,1735702246188,-1354.71,0.00011057,2]
[347334717,1735702246198,-1021.48,0.00011057,2]
[347334718,1735702246209,-500.0,0.00011057,2]
[347334719,1735702246219,-625.2,0.00011057,2]
[347334720,1735702246228,-3635.93,0.00011057,2]
[347334721,1735702246238,-793.15,0.00011057,2]
[347334722,1735702246248,-1088.3,0.00011057,2]
[347334723,1735702246258,-947.75,0.00011057,2]
[347334724,1735702246268,-1767.72,0.00011057,2]
[347334725,1735702246278,-500.0,0.00011057,2]
[347334726,1735702246288,-717.94,0.00011057,2]
[347334727,1735702246298,-500.0,0.00011057,2]
[347334728,1735702246308,-3764.81,0.00011057,2]
[347334729,1735702246317,-3119.14,0.00011057,2]
[347334730,1735702246327,-2615.73,0.00011057,2]
[347334731,1735702246336,-577.16,0.00011057,2]
[347334732,1735702246346,-3578.19,0.00011057,2]
[347334733,1735702246355,-838.15,0.00011057,2]
[347334734,1735702246366,-1542.67,0.00011057,2]
[347334735,1735702246375,-2433.45,0.00011057,2]
[347334736,1735702246385,-500.0,0.00011057,2]
[347334737,1735702246398,-1000.91,0.00011057,2]
[347334738,1735702246408,-500.0,0.00011057,2]
[347334739,1735702246418,-500.0,0.00011057,2]
[347334740,1735702246430,-2596.25,0.00011057,2]
[347334741,1735702246440,-510.44,0.00011057,2]
[347334742,1735702246450,-1643.25,0.00011057,2]
[347334743,1735702246460,-732.05,0.00011057,2]
[347334744,1735702246470,-500.0,0.00011057,2]
[347334745,1735702246481,-2496.12,0.00011057,2]
[347334746,1735702246491,-8911.49,0.00011057,2]
[347334747,1735702246501,-592.92,0.00011057,2]
[347334748,1735702246511,-901.49,0.00011057,2]
[347334749,1735702246521,-500.0,0.00011057,2]
[347334750,1735702246530,-826.51,0.00011057,2]
[347334751,1735702246540,-2531.47,0.00011057,2]
[347334752,1735702246549,-1533.92,0.00011057,2]
[347334753,1735702246559,-500.0,0.00011057,2]
[347334754,1735702246569,-5082.5,0.00011057,2]
[347334755,1735702246579,-1003.35,0.00011057,2]
[347334756,1735702246588,-553.02,0.00011057,2]
[347334757,1735702246598,-6072.08,0.00011057,2]
[347334758,1735702246607,-500.0,0.00011057,2]
[347334759,1735702246617,-500.0,0.00011057,2]
[347334760,1735702246627,-786.16116999,0.00011058,2]
[347334761,1735702246637,-240867.6233729,0.00011058,2]
[347334762,1735702246647,-483.2271676,0.00011058,2]
[347334763,1735702246656,-500.0,0.00011058,2]
[347334764,1735702246667,-500.0,0.00011058,2]
[347334765,1735702246678,-537.68151665,0.00011058,2]
[347334766,1735702246688,-500.0,0.00011058,2]
[347334767,1735702246698,-500.0,0.00011058,2]
[347334768,1735702246708,-500.0,0.00011058,2]
[347334769,1735702246718,-535.75654411,0.00011058,2]
[347334770,1735702246728,-274.71119477,0.00011058,2]
[347334771,1735702246738,-500.0,0.00011058,2]
[347334772,1735702246748,-500.0,0.00011058,2]
[347334773,1735702246758,-500.0,0.00011058,2]
[347334774,1735702246768,-500.0,0.00011058,2]
[347334775,1735702246778,-500.0,0.00011058,2]
[347334776,1735702246788,-500.0,0.00011058,2]
[347334777,1735702246798,-500.0,0.00011058,2]
[347334778,1735702246807,-500.0,0.00011058,2]
[347334779,1735702246817,-500.0,0.00011058,2]
[347334780,1735702246826,-500.0,0.00011058,2]
[347334781,1735702246836,-500.0,0.00011058,2]
[347334782,1735702246846,-500.0,0.00011058,2]
[347334783,1735702246855,-500.0,0.00011058,2]
[347334784,1735702246865,-500.0,0.00011058,2]
[347334785,1735702246876,-500.0,0.00011058,2]
[347334786,1735702246886,-500.0,0.00011058,2]
[347334787,1735702246897,-561.87615452,0.00011058,2]
[347334788,1735702246908,-387.1337565,0.00011058,2]
[347334789,1735702246918,-500.0,0.00011058,2]
[347334790,1735702246927,-625.02176455,0.00011058,2]
[347334791,1735702246937,-500.0,0.00011058,2]
[347334792,1735702246946,-579.40989309,0.00011058,2]
[347334793,1735702246955,-500.0,0.00011058,2]
[347334794,1735702246965,-500.0,0.00011058,2]
[347334795,1735702246975,-500.0,0.00011058,2]
[347334796,1735702246984,-500.0,0.00011058,2]
[347334797,1735702246993,-500.0,0.00011058,2]
[347334798,1735702247004,-541.9,0.00011058,2]
[347334799,1735702247013,-500.0,0.00011058,2]
[347334800,1735702247023,-500.0,0.00011058,2]
[347334801,1735702247032,-500.0,0.00011058,2]
[347334802,1735702247042,-500.0,0.00011058,2]
[347334803,1735702247051,-201.05661285,0.00011058,2]
[347334804,1735702247061,-500.0,0.00011058,2]
[347334805,1735702247071,-1328.68,0.00011058,2]
[347334806,1735702247080,-2564.81,0.00011058,2]
[347334807,1735702247089,-264.517157,0.00011058,2]
[347334808,1735702247099,-500.0,0.00011058,2]
[347334809,1735702247108,-500.0,0.00011058,2]
[347334810,1735702247118,-500.0,0.00011058,2]
[347334811,1735702247358,-707.61,0.00011058,2]
[347334812,1735702247398,-500.0,0.00011058,2]
[347334813,1735702247408,-397.04513644,0.00011058,2]
[347334814,1735702247418,-500.0,0.00011058,2]
[347334815,1735702247427,-1265.54,0.00011058,2]
[347334816,1735702247437,-500.0,0.00011058,2]
[347334817,1735702247446,-500.0,0.00011058,2]
[347334818,1735702247456,-500.0,0.00011058,2]
[347334819,1735702247465,-500.0,0.00011058,2]
[347334820,1735702247475,-500.0,0.00011058,2]
[347334821,1735702247485,-500.0,0.00011058,2]
[347334822,1735702247494,-500.0,0.00011058,2]
[347334823,1735702247504,-853.39,0.00011058,2]
[347334824,1735702247514,-639.67,0.00011058,2]
[347334825,1735702247523,-628.88269119,0.00011058,2]
[347334826,1735702247533,-500.0,0.00011058,2]
[347334827,1735702247542,-500.0,0.00011058,2]
[347334828,1735702247552,-3069.88,0.00011058,2]
[347334829,1735702247561,-500.0,0.00011058,2]
[347334830,1735702247570,-1189.91,0.00011058,2]
[347334831,1735702247580,-500.0,0.00011058,2]
[347334832,1735702247590,-500.0,0.00011058,2]
[347334833,1735702247599,-500.0,0.00011058,2]
[347334834,1735702247609,-500.0,0.00011058,2]
[347334835,1735702247618,-500.0,0.00011058,2]
[347334836,1735702247628,-2721.73,0.00011058,2]
[347334837,1735702247637,-500.0,0.00011058,2]
[347334838,1735702247647,-500.0,0.00011058,2]
[347334839,1735702247657,-500.0,0.00011058,2]
[347334840,1735702247667,-500.0,0.00011058,2]
[347334841,1735702247676,-684.08,0.00011058,2]
[347334842,1735702247686,-947.58,0.00011058,2]
[347334843,1735702247696,-500.0,0.00011058,2]
[347334844,1735702247706,-300.0,0.00011058,2]
[347334845,1735702247717,-500.0,0.00011058,2]
[347334846,1735702247727,-3249.66,0.00011058,2]
[347334847,1735702247737,-2126.77,0.00011058,2]
[347334848,1735702247747,-500.0,0.00011058,2]
[347334849,1735702247757,-789.09,0.00011058,2]
[347334850,1735702247767,-500.0,0.00011058,2]
[347334851,1735702247776,-562.9,0.00011058,2]
[347334852,1735702247785,-884.06,0.00011058,2]
[347334853,1735702247795,-500.0,0.00011058,2]
[347334854,1735702247804,-1072.16,0.00011058,2]
[347334855,1735702247813,-500.0,0.00011058,2]
[347334856,1735702247823,-1755.68,0.00011058,2]
[347334857,1735702247832,-1677.06,0.00011058,2]
[347334858,1735702247842,-2064.59,0.00011058,2]
[347334859,1735702247851,-500.0,0.00011058,2]
[347334860,1735702247861,-576.2,0.00011058,2]
[347334861,1735702247870,-658.24,0.00011058,2]
[347334862,1735702247880,-500.0,0.00011058,2]
[347334863,1735702247889,-1265.79,0.00011058,2]
[347334864,1735702247899,-500.0,0.00011058,2]
[347334865,1735702247909,-500.0,0.00011058,2]
[347334866,1735702247918,-2385.28,0.00011058,2]
[347334867,1735702247928,-500.0,0.00011058,2]
[347334868,1735702247937,-500.0,0.00011058,2]
[347334869,1735702247947,-500.0,0.00011058,2]
[347334870,1735702247956,-500.0,0.00011058,2]
[347334871,1735702247966,-500.0,0.00011058,2]
[347334872,1735702247975,-2172.68,0.00011058,2]
[347334873,1735702247984,-555.98,0.00011058,2]
[347334874,1735702247993,-500.0,0.00011058,2]
[347334875,1735702248003,-500.0,0.00011058,2]
[347334876,1735702248012,-781.23,0.00011058,2]
[347334877,1735702248021,-500.0,0.00011058,2]
[347334878,1735702248031,-500.0,0.00011058,2]
[347334879,1735702248040,-500.0,0.00011058,2]
[347334880,1735702248050,-500.0,0.00011058,2]
[347334881,1735702248059,-521.87454101,0.00011058,2]
[347334882,1735702248068,-511.96068527,0.00011058,2]
[347334883,1735702248077,-1758.55,0.00011058,2]
[347334884,1735702248087,-942.3,0.00011058,2]
[347334885,1735702248096,-500.0,0.00011058,2]
[347334886,1735702248105,-500.0,0.00011058,2]
[347334887,1735702248114,-500.0,0.00011058,2]
[347334888,1735702248123,-500.0,0.00011058,2]
[347334889,1735702248132,-1581.72,0.00011058,2]
[347334890,1735702248141,-500.0,0.00011058,2]
[347334891,1735702248150,-500.0,0.00011058,2]
[347334892,1735702248159,-2321.32,0.00011058,2]
[347334893,1735702248169,-3103.92,0.00011058,2]
[347334894,1735702248179,-1682.08,0.00011058,2]
[347334895,1735702248187,-500.0,0.00011058,2]
[347334896,1735702248197,-667.25,0.00011058,2]
[347334897,1735702248206,-747.44,0.00011058,2]
[347334898,1735702248215,-500.0,0.00011058,2]
[347334899,1735702248225,-1311.64,0.00011058,2]
[347334900,1735702248234,-1483.62,0.00011058,2]
[347334901,1735702248243,-1292.3,0.00011058,2]
[347334902,1735702248253,-500.0,0.00011058,2]
[347334903,1735702248263,-663.88,0.00011058,2]
[347334904,1735702248272,-500.0,0.00011058,2]
[347334905,1735702248282,-500.0,0.00011058,2]
[347334906,1735702248291,-500.0,0.00011058,2]
[347334907,1735702248301,-655.0,0.00011058,2]
[347334908,1735702248311,-1133.33,0.00011058,2]
[347334909,1735702248321,-500.0,0.00011058,2]
[347334910,1735702248330,-500.0,0.00011058,2]
[347334911,1735702248339,-500.0,0.00011058,2]
[347334912,1735702248348,-500.0,0.00011058,2]
[347334913,1735702248358,-500.0,0.00011058,2]
[347334914,1735702248367,-500.0,0.00011058,2]
[347334915,1735702248377,-500.0,0.00011058,2]
[347334916,1735702248386,-500.0,0.00011058,2]
[347334917,1735702248400,-500.0,0.00011058,2]
[347334918,1735702248409,-500.0,0.00011058,2]
[347334919,1735702248418,-1082.9,0.00011058,2]
[347334920,1735702248427,-500.0,0.00011058,2]
[347334921,1735702248440,-500.0,0.00011058,2]
[347334922,1735702248449,-2645.44,0.00011058,2]
[347334923,1735702248459,-500.0,0.00011058,2]
[347334924,1735702248468,-1264.86,0.00011058,2]
[347334925,1735702248479,-2213.45,0.00011058,2]
[347334926,1735702248489,-645.5,0.00011058,2]
[347334927,1735702248499,-1000.0,0.00011058,2]
[347334928,1735702248508,-653.98,0.00011058,2]
[347334929,1735702248517,-500.0,0.00011058,2]
[347334930,1735702248526,-500.0,0.00011058,2]
[347334931,1735702248536,-500.0,0.00011058,2]
[347334932,1735702248545,-500.0,0.00011058,2]
[347334933,1735702248555,-644.30049878,0.00011058,2]
[347334934,1735702248565,-500.0,0.00011058,2]
[347334935,1735702248575,-690.02,0.00011058,2]
[347334936,1735702248586,-500.0,0.00011058,2]
[347334937,1735702248595,-4731.75,0.00011058,2]
[347334938,1735702248605,-500.0,0.00011058,2]
[347334939,1735702248615,-649.51,0.00011058,2]
[347334940,1735702248625,-5108.76,0.00011058,2]
[347334941,1735702248635,-500.0,0.00011058,2]
[347334942,1735702248644,-3241.19,0.00011058,2]
[347334943,1735702248654,-500.0,0.00011058,2]
[347334944,1735702248663,-507.63,0.00011058,2]
[347334945,1735702248673,-5626.15,0.00011058,2]
[347334946,1735702248683,-3193.1,0.00011058,2]
[347334947,1735702248692,-4750.68,0.00011058,2]
[347334948,1735702248702,-1096.42,0.00011058,2]
[347334949,1735702248712,-1028.12,0.00011058,2]
[347334950,1735702248722,-1089.73,0.00011058,2]
[347334951,1735702248733,-1815.91,0.00011058,2]
[347334952,1735702248742,-2434.02,0.00011058,2]
[347334953,1735702248754,-1032.95,0.00011058,2]
[347334954,1735702248763,-1658.89,0.00011058,2]
[347334955,1735702248773,-2039.44,0.00011058,2]
[347334956,1735702248783,-500.0,0.00011058,2]
[347334957,1735702248792,-500.0,0.00011058,2]
[347334958,1735702248802,-569.95,0.00011058,2]
[347334959,1735702248811,-990.34,0.00011058,2]
[347334960,1735702248821,-2975.53,0.00011058,2]
[347334961,1735702248830,-640.17,0.00011058,2]
[347334962,1735702248840,-500.0,0.00011058,2]
[347334963,1735702248849,-2186.47,0.00011058,2]
[347334964,1735702248859,-2916.76,0.00011058,2]
[347334965,1735702248868,-1967.69,0.00011058,2]
[347334966,1735702248878,-1915.64,0.00011058,2]
[347334967,1735702248887,-728.56,0.00011058,2]
[347334968,1735702248897,-500.0,0.00011058,2]
[347334969,1735702248906,-1882.27,0.00011058,2]